fUST/lending_fUST_20260312
["ID","MTS","AMOUNT","RATE_DAILY","PERIOD"]
[408236769,1773285043464,-947.78286,0.00012251,2]
[408236770,1773285043473,-947.78286,0.00012251,2]
[408236771,1773285043482,-220.805974,0.00012251,2]
[408236772,1773285043492,-220.805974,0.00012251,2]
[408236773,1773285043501,-220.805974,0.00012251,2]
[408236774,1773285043510,-220.805974,0.00012251,2]
[408236775,1773285043520,-220.805974,0.00012251,2]
[408236776,1773285043529,-220.805974,0.00012251,2]
[408236777,1773285043539,-151.0,0.00012251,2]
[408236778,1773285043548,-151.0,0.00012251,2]
[408236779,1773285043558,-151.0,0.00012251,2]
[408236780,1773285043567,-151.0,0.00012251,2]
[408236781,1773285043579,-151.0,0.00012251,2]
[408236782,1773285043588,-151.0,0.00012251,2]
[408236783,1773285043597,-684.49027,0.00012251,2]
[408236784,1773285043606,-684.49027,0.00012251,2]
[408236785,1773285043616,-684.49027,0.00012251,2]
[408236786,1773285043625,-684.49027,0.00012251,2]
[408236787,1773285043634,-684.49027,0.00012251,2]
[408236788,1773285043643,-684.49027,0.00012251,2]
[408236789,1773285043652,-684.49027,0.00012251,2]
[408236790,1773285043661,-684.49027,0.00012251,2]
[408236791,1773285043671,-684.49027,0.00012251,2]
[408236792,1773285043680,-684.49027,0.00012251,2]
[408236793,1773285043691,-684.49027,0.00012251,2]
[408236794,1773285043702,-684.49027,0.00012251,2]
[408236795,1773285043713,-684.49027,0.00012251,2]
[408236796,1773285043723,-684.49027,0.00012251,2]
[408236797,1773285043733,-684.49027,0.00012251,2]
[408236798,1773285043742,-684.49027,0.00012251,2]
[408236799,1773285043751,-1195.417176,0.00012251,2]
[408236800,1773285043760,-1195.417176,0.00012251,2]
[408236801,1773285043770,-1195.417176,0.00012251,2]
[408236802,1773285043779,-1195.417176,0.00012251,2]
[408236803,1773285043789,-1404.246789,0.00012251,2]
[408236804,1773285043798,-1195.417176,0.00012251,2]
[408236805,1773285043808,-1404.246789,0.00012251,2]
[408236806,1773285043817,-1195.417176,0.00012251,2]
[408236807,1773285043826,-1404.246789,0.00012251,2]
[408236808,1773285043835,-1195.417176,0.00012251,2]
[408236809,1773285043844,-1404.246789,0.00012251,2]
[408236810,1773285043854,-1195.417176,0.00012251,2]
[408236811,1773285043863,-1404.246789,0.00012251,2]
[408236812,1773285043872,-1195.417176,0.00012251,2]
[408236813,1773285043881,-1195.417176,0.00012251,2]
[408236814,1773285043891,-1404.246789,0.00012251,2]
[408236815,1773285043900,-1195.417176,0.00012251,2]
[408236816,1773285043909,-1404.246789,0.00012251,2]
[408236817,1773285043919,-1404.246789,0.00012251,2]
[408236818,1773285043931,-1195.417176,0.00012251,2]
[408236819,1773285043940,-1404.246789,0.00012251,2]
[408236820,1773285043950,-1404.246789,0.00012251,2]
[408236821,1773285043960,-1195.417176,0.00012251,2]
[408236822,1773285043970,-1404.246789,0.00012251,2]
[408236823,1773285043980,-1195.417176,0.00012251,2]
[408236824,1773285043989,-1404.246789,0.00012251,2]
[408236825,1773285043999,-1195.417176,0.00012251,2]
[408236826,1773285044009,-1195.417176,0.00012251,2]
[408236827,1773285044018,-1404.246789,0.00012251,2]
[408236828,1773285044027,-1404.246789,0.00012251,2]
[408236829,1773285044037,-1404.246789,0.00012251,2]
[408236830,1773285044047,-1404.246789,0.00012251,2]
[408236831,1773285044057,-151.0,0.00012251,2]
[408236832,1773285044066,-271.057796,0.00012251,2]
[408236833,1773285044077,-151.0,0.00012251,2]
[408236834,1773285044087,-151.0,0.00012251,2]
[408236835,1773285044097,-151.0,0.00012251,2]
[408236836,1773285044106,-151.0,0.00012251,2]
[408236837,1773285044116,-151.0,0.00012251,2]
[408236838,1773285044125,-151.0,0.00012251,2]
[408236839,1773285044135,-151.0,0.00012251,2]
[408236840,1773285044148,-151.0,0.00012251,2]
[408236841,1773285044158,-3000.0,0.00012251,2]
[408236842,1773285044168,-3000.0,0.00012251,2]
[408236843,1773285044178,-3000.0,0.00012251,2]
[408236844,1773285044188,-1743.317093,0.00012251,2]
[408236845,1773285044197,-151.0,0.00012251,2]
[408236846,1773285044207,-151.0,0.00012251,2]
[408236847,1773285044217,-151.0,0.00012251,2]
[408236848,1773285044229,-151.0,0.00012251,2]
[408236849,1773285044240,-151.0,0.00012251,2]
[408236850,1773285044250,-151.0,0.00012251,2]
[408236851,1773285044260,-151.0,0.00012251,2]
[408236852,1773285044270,-151.0,0.00012251,2]
[408236853,1773285044280,-151.0,0.00012251,2]
[408236854,1773285044289,-228.11755,0.00012251,2]
[408236855,1773285044298,-342.162425,0.00012251,2]
[408236856,1773285044309,-342.162425,0.00012251,2]
[408236857,1773285044318,-342.162425,0.00012251,2]
[408236858,1773285044328,-151.0,0.00012251,2]
[408236859,1773285044337,-342.162425,0.00012251,2]
[408236860,1773285044346,-151.0,0.00012251,2]
[408236861,1773285044355,-151.0,0.00012251,2]
[408236862,1773285044364,-342.162425,0.00012251,2]
[408236863,1773285044373,-151.0,0.00012251,2]
[408236864,1773285044382,-342.162425,0.00012251,2]
[408236865,1773285044391,-342.162425,0.00012251,2]
[408236866,1773285044401,-342.162425,0.00012251,2]
[408236867,1773285044410,-151.0,0.00012251,2]
[408236868,1773285044419,-151.0,0.00012251,2]
[408236869,1773285044428,-342.162425,0.00012251,2]
[408236870,1773285044438,-151.0,0.00012251,2]
[408236871,1773285044447,-151.0,0.00012251,2]
[408236872,1773285044456,-151.0,0.00012251,2]
[408236873,1773285044466,-151.0,0.00012251,2]
[408236874,1773285044475,-151.0,0.00012251,2]
[408236875,1773285044484,-151.0,0.00012251,2]
[408236876,1773285044494,-342.162425,0.00012251,2]
[408236877,1773285044504,-342.162425,0.00012251,2]
[408236878,1773285044513,-151.0,0.00012251,2]
[408236879,1773285044523,-342.162425,0.00012251,2]
[408236880,1773285044532,-151.0,0.00012251,2]
[408236881,1773285044541,-151.0,0.00012251,2]
[408236882,1773285044551,-342.162425,0.00012251,2]
[408236883,1773285044560,-197.249614,0.00012251,2]
[408236884,1773285044569,-342.162425,0.00012251,2]
[408236885,1773285044579,-342.162425,0.00012251,2]
[408236886,1773285044588,-342.162425,0.00012251,2]
[408236887,1773285044597,-300.396713,0.00012251,2]
[408236888,1773285044607,-151.0,0.00012251,2]
[408236889,1773285044616,-151.0,0.00012251,2]
[408236890,1773285044625,-151.0,0.00012251,2]
[408236891,1773285044635,-151.0,0.00012251,2]
[408236892,1773285044644,-151.0,0.00012251,2]
[408236893,1773285044653,-151.0,0.00012251,2]
[408236894,1773285044662,-151.0,0.00012251,2]
[408236895,1773285044671,-151.0,0.00012251,2]
[408236896,1773285044681,-151.0,0.00012251,2]
[408236897,1773285044690,-461.67526834,0.00012284,2]
[408236898,1773285044699,-557.5788265,0.00012284,2]
[408236899,1773285044709,-2230.315306,0.00012284,2]
[408236900,1773285044719,-151.0,0.00012285,2]
[408236901,1773285044729,-2815.58284374,0.00012286,2]
[408236902,1773285044800,-151.0,0.000123,2]
[408236903,1773285044810,-151.0,0.000123,2]
[408236904,1773285044820,-151.0,0.000123,2]
[408236905,1773285044830,-500.0,0.00012302,2]
[408236906,1773285044839,-500.0,0.00012302,2]
[408236907,1773285044849,-151.0,0.00012312,2]
[408236908,1773285044859,-151.0,0.00012312,2]
[408236909,1773285044868,-151.0,0.00012312,2]
[408236910,1773285044878,-151.0,0.00012312,2]
[408236911,1773285044887,-151.0,0.00012312,2]
[408236912,1773285044897,-388.080765,0.00012312,2]
[408236913,1773285044907,-388.080765,0.00012312,2]
[408236914,1773285044917,-388.080765,0.00012312,2]
[408236915,1773285044927,-388.080767,0.00012312,2]
[408236916,1773285044937,-329.899878,0.00012312,2]
[408236917,1773285044947,-329.899878,0.00012312,2]
[408236918,1773285044957,-195.552197,0.00012312,2]
[408236919,1773285044967,-329.899878,0.00012312,2]
[408236920,1773285044977,-195.552197,0.00012312,2]
[408236921,1773285044986,-329.89987484,0.00012312,2]
[408236922,1773285044995,-195.552197,0.00012312,2]
[408236923,1773285045004,-195.552205,0.00012312,2]
[408236924,1773285045013,-151.0,0.00012312,2]
[408236925,1773285045022,-151.0,0.00012312,2]
[408236926,1773285045031,-157.149952,0.00012312,2]
[408236927,1773285045040,-2072.3715454,0.00012329,2]
[408236928,1773285045049,-2919.75940895,0.00012341,2]
[408236929,1773285045058,-1341.01479515,0.00012345,2]
[408236930,1773285045067,-500.0,0.00012356,2]
[408236931,1773285045076,-500.0,0.00012356,2]
[408236932,1773285045086,-35929.48993415,0.00012375,2]
[408236933,1773285045111,-5526.81915222,0.00012375,2]
[408236935,1773285045556,-15551.44677325,0.00012375,2]
[408236941,1773285045804,-3468.51044635,4.919e-05,2]
[408236942,1773285045815,-1392.21531317,4.919e-05,2]
[408236943,1773285045826,-151.0,0.00012251,2]
[408236944,1773285045836,-151.0,0.00012251,2]
[408236945,1773285045845,-151.0,0.00012251,2]
[408236946,1773285045855,-151.0,0.00012251,2]
[408236947,1773285045864,-151.0,0.00012251,2]
[408236948,1773285045875,-151.0,0.00012251,2]
[408236949,1773285045885,-151.0,0.00012251,2]
[408236950,1773285045894,-276.741191,0.00012285,2]
[408236951,1773285045904,-151.0,0.00012285,2]
[408236952,1773285045914,-249.376422,0.00012285,2]
[408236953,1773285045925,-14327.62866661,0.00012375,2]
[408236954,1773285045938,-1396.25877603,0.00012375,2]
[408236955,1773285046077,-2455.38369134,0.00012375,2]
[408236956,1773285046090,-8261.20423987,0.00012375,2]
[408236957,1773285046103,-4895.9349,0.00012375,2]
[408236958,1773285046204,-889.55363385,0.00012375,2]
[408236959,1773285046217,-336141.43906865,0.00012375,2]
[408236960,1773285046232,-416.08,0.00012375,2]
[408236961,1773285046245,-11709.55348668,0.00012375,2]
[408236962,1773285046256,-11751.64103945,0.00012375,2]
[408236963,1773285046268,-4132.80713712,0.00012375,2]
[408236964,1773285046287,-693.0,0.00012375,2]
[408236965,1773285046299,-4875.68135957,0.00012375,2]
[408236966,1773285046310,-11650.3344618,0.00012375,2]
[408236967,1773285046322,-569.37999998,0.00012375,2]
[408236968,1773285046334,-1263.315377,0.00012375,2]
[408236975,1773285603147,161.19,2e-05,2]
[408237021,1773286231836,-418.0,0.00010653,2]
[408237023,1773286231846,-5000.0,0.00010654,2]
[408237025,1773286231856,-569.0,0.00010654,2]
[408237027,1773286231865,-2122.7804544,0.00010861,7]
[408237029,1773286231875,-197.63599065,0.00010872,2]
[408237031,1773286231884,-300.0,0.00011204,2]
[408237033,1773286231893,-500.0,0.00011853,2]
[408237035,1773286231902,-300.0,0.00011899,2]
[408237037,1773286231911,-500.0,0.00011899,2]
[408237039,1773286231924,-614.09102843,0.00011899,2]
[408237041,1773286231934,-495.0,0.00011899,2]
[408237043,1773286231943,-13603.16160116,0.000119,2]
[408237100,1773286237981,-500.0,0.00011899,2]
[408237102,1773286237991,-464.18155867,0.00011899,2]
[408237104,1773286238000,-3454.00315784,0.000119,2]
[408237109,1773286238033,-1405.5599481,0.000119,2]
[408237344,1773286240422,-1299.83444692,0.00011781,2]
[408237406,1773286243298,-4049.73398522,0.00011781,2]
[408237417,1773286246007,-16088.33631341,0.00011781,2]
[408237418,1773286246169,-3515.75,0.00011781,2]
[408237434,1773286802563,161.19,2e-05,2]
[408237483,1773287432020,-399.86526697,9.706e-05,2]
[408237490,1773287432074,-1694.92023323,9.706e-05,2]
[408237492,1773287432083,-556.0,9.706e-05,2]
[408237494,1773287432093,-174.88807005,9.736e-05,2]
[408237498,1773287432127,-22.56974967,9.736e-05,2]
[408237500,1773287432137,-160.0,9.767e-05,2]
[408237501,1773287432146,-676.55015432,9.802e-05,2]
[408237553,1773287440521,-845.15949572,9.802e-05,2]
[408237556,1773287440533,-423.16105472,9.802e-05,2]
[408237561,1773287440575,-682.24488837,9.802e-05,2]
[408237662,1773287445437,-453.0,9.704e-05,2]
[408237690,1773287446126,-4547.0,9.704e-05,2]
[408237691,1773287446135,-1373.51060794,9.802e-05,2]
[408237707,1773288002288,161.19,2e-05,2]
[408237841,1773288632668,-775.62982133,7.984e-05,2]
[408237843,1773288632677,-5000.0,8.32e-05,2]
[408237845,1773288632697,-537.0,8.32e-05,2]
[408237847,1773288632706,-207.56105652,8.537e-05,2]
[408237849,1773288632715,-300.0,9.049e-05,2]
[408237851,1773288632725,-1200.0,9.049e-05,2]
[408237853,1773288632734,-2150.62293079,9.05e-05,2]
[408237855,1773288632745,-430.852006,9.05e-05,2]
[408238015,1773288638667,-1755.93704936,9.05e-05,2]
[408238017,1773288638678,-6239.6273868,9.05e-05,2]
[408238019,1773288638687,-300.0,9.23e-05,2]
[408238021,1773288638696,-300.0,9.23e-05,2]
[408238023,1773288638706,-300.0,9.23e-05,2]
[408238025,1773288638715,-300.0,9.23e-05,2]
[408238027,1773288638724,-300.0,9.23e-05,2]
[408238029,1773288638733,-300.0,9.23e-05,2]
[408238031,1773288638742,-300.0,9.23e-05,2]
[408238033,1773288638751,-300.0,9.23e-05,2]
[408238035,1773288638760,-300.0,9.23e-05,2]
[408238037,1773288638769,-300.0,9.23e-05,2]
[408238039,1773288638778,-300.0,9.23e-05,2]
[408238041,1773288638787,-300.0,9.23e-05,2]
[408238043,1773288638797,-300.0,9.23e-05,2]
[408238045,1773288638806,-300.0,9.23e-05,2]
[408238047,1773288638815,-300.0,9.23e-05,2]
[408238049,1773288638824,-300.0,9.365e-05,2]
[408238051,1773288638833,-600.0,9.414e-05,2]
[408238053,1773288638842,-2940.01878024,9.716e-05,2]
[408238055,1773288638850,-420.0,9.954e-05,2]
[408238057,1773288638859,-167.73418729,0.000102,2]
[408238059,1773288638868,-154.72190936,0.000102,2]
[408238061,1773288638877,-720.0,0.00010355,2]
[408238063,1773288638887,-500.0,0.00010379,2]
[408238065,1773288638895,-500.0,0.00010379,2]
[408238067,1773288638905,-500.0,0.00010379,2]
[408238069,1773288638915,-500.0,0.00010379,2]
[408238071,1773288638924,-500.0,0.00010379,2]
[408238073,1773288638933,-500.0,0.00010379,2]
[408238075,1773288638943,-500.0,0.00010379,2]
[408238077,1773288638952,-500.0,0.00010379,2]
[408238079,1773288638961,-500.0,0.00010379,2]
[408238081,1773288638970,-583.98825726,0.00010379,2]
[408238083,1773288638980,-500.0,0.00010379,2]
[408238085,1773288638990,-372.98727898,0.00010379,2]
[408238087,1773288638999,-500.0,0.00010379,2]
[408238089,1773288639008,-500.0,0.00010379,2]
[408238091,1773288639018,-604.03178043,0.00010379,2]
[408238093,1773288639027,-500.0,0.00010379,2]
[408238095,1773288639035,-295.5,0.00010379,2]
[408238097,1773288639045,-205.5520412,0.00010379,2]
[408238099,1773288639054,-1558.95454809,0.00010382,2]
[408238101,1773288639065,-6777.09704732,0.00010382,2]
[408238103,1773288639074,-9307.22795762,0.00010482,2]
[408238105,1773288639082,-244.92204669,0.00010537,2]
[408238107,1773288639091,-180.0,0.0001095,2]
[408238109,1773288639101,-160.814082,0.00011183,2]
[408238111,1773288639110,-864.0,0.0001139,2]
[408238113,1773288639119,-2194.0,0.00011629,2]
[408238115,1773288639128,-639.0,0.00011629,2]
[408238117,1773288639138,-733.0,0.00011629,2]
[408238119,1773288639147,-436.0,0.00011629,2]
[408238121,1773288639156,-436.0,0.00011629,2]
[408238123,1773288639165,-174.92709107,0.00011637,2]
[408238125,1773288639174,-500.0,0.00011637,2]
[408238127,1773288639187,-3231.20513541,0.00011638,2]
[408238129,1773288639198,-638.48320728,0.00011638,2]
[408238300,1773288644765,-1130.31165731,0.00011638,2]
[408238302,1773288644775,-2981.01608094,0.00011638,2]
[408238304,1773288644786,-1275.38190145,0.00011638,2]
[408238305,1773288644873,-743.60201761,0.00011638,2]
[408238306,1773288644882,-1124.39309612,0.00011638,2]
[408238315,1773288646313,-3875.60690388,0.00011638,2]
[408238316,1773288646323,-4631.61921808,0.00011638,2]
[408238317,1773288646334,-368.38078192,0.00011638,2]
[408238318,1773288646343,-5000.0,0.00011638,2]
[408238319,1773288646352,-160.814082,0.00011654,2]
[408238320,1773288646362,-555.04597886,0.00011722,2]
[408238321,1773288646371,-500.0,0.00011722,2]
[408238322,1773288646381,-500.0,0.00011722,2]
[408238323,1773288646390,-500.0,0.00011722,2]
[408238324,1773288646400,-500.0,0.00011722,2]
[408238325,1773288646411,-526.75401474,0.00011722,2]
[408238342,1773289203204,161.19,2e-05,2]
[408238408,1773289832400,-384.768375,9.412e-05,2]
[408238538,1773289838606,-323.50218769,9.412e-05,2]
[408238545,1773289846552,-4291.72943731,9.412e-05,2]
[408238546,1773289846564,-552.0,9.412e-05,2]
[408238547,1773289846575,-202.28585437,9.58e-05,2]
[408238548,1773289846584,-1200.0,9.678e-05,2]
[408238549,1773289846595,-300.0,9.679e-05,2]
[408238550,1773289846605,-300.0,9.679e-05,2]
[408238551,1773289846616,-3791.85046351,9.68e-05,2]
[408238552,1773289846627,-2024.54991292,9.78e-05,2]
[408238553,1773289846712,-992.09,9.78e-05,2]
[408238555,1773289881428,-1004.83918406,9.582e-05,2]
[408238569,1773290402350,161.19,2e-05,2]
[408238608,1773291032197,-434.44183182,7.23e-05,2]
[408238609,1773291032210,-2983.2454908,7.23e-05,2]
[408238623,1773291037626,-2800.0,7.158e-05,2]
[408238625,1773291037636,-5604.1220606,7.219e-05,2]
[408238627,1773291037645,-1582.31267738,7.23e-05,2]
[408238629,1773291037655,-523.0,7.303e-05,2]
[408238631,1773291037664,-202.09008892,7.34e-05,2]
[408238633,1773291037675,-300.0,7.448e-05,2]
[408238635,1773291037684,-300.0,7.448e-05,2]
[408238637,1773291037694,-300.0,7.448e-05,2]
[408238639,1773291037703,-300.0,7.448e-05,2]
[408238641,1773291037712,-300.0,7.448e-05,2]
[408238643,1773291037721,-300.0,7.448e-05,2]
[408238645,1773291037731,-300.0,7.448e-05,2]
[408238647,1773291037740,-300.0,7.448e-05,2]
[408238649,1773291037750,-300.0,7.448e-05,2]
[408238651,1773291037759,-300.0,7.448e-05,2]
[408238653,1773291037768,-300.0,7.603e-05,2]
[408238655,1773291037777,-300.0,8.218e-05,2]
[408238657,1773291037786,-500.0,8.219e-05,2]
[408238659,1773291037794,-500.0,8.219e-05,2]
[408238660,1773291037804,-500.0,8.274e-05,2]
[408238662,1773291037819,-500.0,8.274e-05,2]
[408238664,1773291037829,-166.11214167,8.328e-05,2]
[408238667,1773291037839,-500.0,8.328e-05,2]
[408238668,1773291037849,-500.0,8.328e-05,2]
[408238670,1773291037858,-302.63777333,8.328e-05,2]
[408238673,1773291037868,-500.0,8.328e-05,2]
[408238675,1773291037878,-500.0,8.328e-05,2]
[408238677,1773291037891,-500.0,8.328e-05,2]
[408238678,1773291037902,-500.0,8.328e-05,2]
[408238680,1773291037912,-500.0,8.328e-05,2]
[408238682,1773291037928,-500.0,8.328e-05,2]
[408238684,1773291037936,-500.0,8.328e-05,2]
[408238686,1773291037946,-500.0,8.328e-05,2]
[408238688,1773291037955,-500.0,8.328e-05,2]
[408238690,1773291037963,-500.0,8.328e-05,2]
[408238692,1773291037972,-500.0,8.328e-05,2]
[408238694,1773291037982,-226.76250803,8.328e-05,2]
[408238696,1773291037990,-500.0,8.328e-05,2]
[408238698,1773291037999,-500.0,8.328e-05,2]
[408238700,1773291038008,-500.0,8.328e-05,2]
[408238702,1773291038017,-646.76585799,8.328e-05,2]
[408238704,1773291038026,-500.0,8.328e-05,2]
[408238705,1773291038035,-500.0,8.328e-05,2]
[408238707,1773291038044,-500.0,8.328e-05,2]
[408238709,1773291038053,-385.5562996,8.328e-05,2]
[408238711,1773291038062,-500.0,8.328e-05,2]
[408238713,1773291038071,-460.53945848,8.328e-05,2]
[408238715,1773291038081,-500.0,8.328e-05,2]
[408238717,1773291038090,-500.0,8.328e-05,2]
[408238719,1773291038099,-500.0,8.328e-05,2]
[408238721,1773291038108,-500.0,8.328e-05,2]
[408238722,1773291038117,-500.0,8.328e-05,2]
[408238724,1773291038126,-500.0,8.328e-05,2]
[408238725,1773291038136,-500.0,8.328e-05,2]
[408238726,1773291038145,-500.0,8.328e-05,2]
[408238727,1773291038154,-500.0,8.328e-05,2]
[408238728,1773291038162,-500.0,8.328e-05,2]
[408238729,1773291038171,-500.0,8.328e-05,2]
[408238730,1773291038180,-500.0,8.328e-05,2]
[408238731,1773291038189,-500.0,8.328e-05,2]
[408238732,1773291038198,-500.0,8.328e-05,2]
[408238733,1773291038207,-500.0,8.328e-05,2]
[408238734,1773291038216,-499.56944259,8.328e-05,2]
[408238735,1773291038224,-500.0,8.328e-05,2]
[408238736,1773291038234,-500.0,8.328e-05,2]
[408238737,1773291038246,-500.0,8.328e-05,2]
[408238738,1773291038254,-500.0,8.328e-05,2]
[408238739,1773291038263,-500.0,8.328e-05,2]
[408238740,1773291038272,-500.0,8.328e-05,2]
[408238741,1773291038282,-500.0,8.328e-05,2]
[408238742,1773291038291,-500.0,8.328e-05,2]
[408238743,1773291038300,-500.0,8.328e-05,2]
[408238744,1773291038309,-500.0,8.328e-05,2]
[408238745,1773291038319,-500.0,8.328e-05,2]
[408238746,1773291038329,-500.0,8.328e-05,2]
[408238747,1773291038338,-500.0,8.328e-05,2]
[408238748,1773291038348,-500.0,8.328e-05,2]
[408238749,1773291038357,-500.0,8.328e-05,2]
[408238750,1773291038366,-500.0,8.328e-05,2]
[408238751,1773291038375,-500.0,8.328e-05,2]
[408238752,1773291038385,-500.0,8.328e-05,2]
[408238753,1773291038394,-500.0,8.328e-05,2]
[408238754,1773291038403,-500.0,8.328e-05,2]
[408238755,1773291038412,-500.0,8.328e-05,2]
[408238756,1773291038422,-500.0,8.328e-05,2]
[408238757,1773291038431,-500.0,8.328e-05,2]
[408238758,1773291038440,-500.0,8.328e-05,2]
[408238759,1773291038450,-500.0,8.328e-05,2]
[408238760,1773291038459,-500.0,8.328e-05,2]
[408238761,1773291038468,-500.0,8.328e-05,2]
[408238762,1773291038477,-500.0,8.328e-05,2]
[408238763,1773291038486,-500.0,8.328e-05,2]
[408238764,1773291038496,-500.0,8.328e-05,2]
[408238765,1773291038505,-500.0,8.328e-05,2]
[408238766,1773291038514,-500.0,8.328e-05,2]
[408238767,1773291038524,-500.0,8.328e-05,2]
[408238768,1773291038533,-500.0,8.328e-05,2]
[408238769,1773291038542,-500.0,8.328e-05,2]
[408238770,1773291038551,-500.0,8.328e-05,2]
[408238771,1773291038560,-500.0,8.328e-05,2]
[408238772,1773291038570,-500.0,8.328e-05,2]
[408238773,1773291038579,-500.0,8.328e-05,2]
[408238774,1773291038588,-500.0,8.328e-05,2]
[408238775,1773291038597,-500.0,8.328e-05,2]
[408238776,1773291038606,-22402.1017103,8.328e-05,2]
[408238777,1773291038615,-500.0,8.329e-05,2]
[408238778,1773291038623,-500.0,8.329e-05,2]
[408238779,1773291038632,-376.59194791,8.383e-05,2]
[408238780,1773291038642,-472.44896375,8.396e-05,2]
[408238781,1773291038651,-209.04373581,8.557e-05,2]
[408238782,1773291038660,-1004.83918406,8.657e-05,2]
[408238783,1773291038669,-170.83465458,8.836e-05,2]
[408238784,1773291038678,-1106.1765661,8.934e-05,2]
[408238785,1773291038687,-18549.98820574,9.01e-05,2]
[408238800,1773291045713,-300.0,7.448e-05,2]
[408238801,1773291045722,-300.0,7.448e-05,2]
[408238802,1773291045732,-300.0,7.448e-05,2]
[408238803,1773291045742,-141.66666667,7.448e-05,2]
[408238813,1773291603031,161.2,2e-05,2]
[408238851,1773291935295,-2000.0,3.711e-05,2]
[408238852,1773291936234,-2000.0,3.711e-05,2]
[408238853,1773291936837,-667.41205322,3.711e-05,2]
[408238854,1773291936857,-1332.58794678,3.748e-05,2]
[408238855,1773291937036,-2000.0,3.748e-05,2]
[408238856,1773291937419,-1667.41205322,3.748e-05,2]
[408238857,1773291937439,-198.04828715,3.767e-05,2]
[408238858,1773291937458,-134.53965963,3.786e-05,2]
[408238859,1773291937865,-447.25969315,3.786e-05,2]
[408238860,1773291937887,-300.0,3.861e-05,2]
[408238861,1773291937907,-300.0,3.861e-05,2]
[408238862,1773291937928,-300.0,3.861e-05,2]
[408238863,1773291937949,-300.0,3.861e-05,2]
[408238864,1773291937970,-300.0,3.861e-05,2]
[408238865,1773291937990,-52.74030685,3.861e-05,2]
[408238866,1773291938345,-247.25969315,3.861e-05,2]
[408238867,1773291938367,-300.0,3.861e-05,2]
[408238868,1773291938387,-300.0,3.861e-05,2]
[408238869,1773291938409,-300.0,3.861e-05,2]
[408238870,1773291938430,-300.0,3.861e-05,2]
[408238871,1773291938452,-300.0,3.861e-05,2]
[408238872,1773291938472,-252.74030685,3.861e-05,2]
[408238873,1773291939171,-47.25969315,3.861e-05,2]
[408238874,1773291939192,-300.0,3.861e-05,2]
[408238875,1773291939215,-300.0,3.861e-05,2]
[408238876,1773291939236,-300.0,3.861e-05,2]
[408238877,1773291939258,-167.515006,3.863e-05,2]
[408238924,1773292231711,-194.0873214,5.79e-05,2]
[408238926,1773292231721,-503.0,5.79e-05,2]
[408238928,1773292231730,-3344.26804189,5.813e-05,2]
[408238930,1773292231740,-2900.9830294,5.913e-05,2]
[408239026,1773292240316,-459.34763194,5.913e-05,2]
[408239395,1773292245847,-4164.59432801,5.913e-05,2]
[408239396,1773292245856,-7846.44186697,6.013e-05,2]
[408239447,1773292803363,152.42,2e-05,2]
[408239474,1773293431940,-1116.17181009,5.33e-05,2]
[408239475,1773293431950,-3.54543552,5.521e-05,2]
[408239476,1773293431961,-195.07685548,5.521e-05,2]
[408239478,1773293431973,-300.0,5.959e-05,2]
[408239479,1773293431982,-430.01512389,5.959e-05,2]
[408239480,1773293431994,-500.0,5.959e-05,2]
[408239481,1773293432004,-500.0,5.959e-05,2]
[408239482,1773293432013,-500.0,5.959e-05,2]
[408239483,1773293432022,-500.0,5.959e-05,2]
[408239484,1773293432041,-500.0,5.959e-05,2]
[408239485,1773293432050,-500.0,5.959e-05,2]
[408239486,1773293432059,-500.0,5.959e-05,2]
[408239487,1773293432068,-500.0,5.959e-05,2]
[408239488,1773293432076,-500.0,5.959e-05,2]
[408239489,1773293432086,-500.0,5.959e-05,2]
[408239490,1773293432095,-500.0,5.959e-05,2]
[408239491,1773293432105,-500.0,5.959e-05,2]
[408239492,1773293432114,-500.0,5.959e-05,2]